[Event "*** Titled Tuesday Blitz"]
[Site "Chess.com"]
[Date "2021.02.02"]
[Round "2"]
[White "scabies1"]
[Black "Kovalchuk94"]
[Result "0-1"]
[WhiteElo "2336"]
[BlackElo "2637"]
[TimeControl "180+1"]
[EndTime "10:20:40 PST"]
[Termination "Kovalchuk94 won on time"]

1. e4 {[%clk 0:03:00.9]} 1... e5 {[%clk 0:02:56.7]} 2. Nf3 {[%clk 0:03:00.6]}
2... d5 {[%clk 0:02:56.8]} 3. Nxe5 {[%clk 0:02:55.7]} 3... Bd6 {[%clk
0:02:56.7]} 4. d4 {[%clk 0:02:55]} 4... dxe4 {[%clk 0:02:57]} 5. Nc4 {[%clk
0:02:55.3]} 5... Nf6 {[%clk 0:02:56.8]} 6. Nc3 {[%clk 0:02:54.2]} 6... O-O
{[%clk 0:02:56.7]} 7. Be2 {[%clk 0:02:53.5]} 7... Nc6 {[%clk 0:02:54.4]} 8. Be3
{[%clk 0:02:43.6]} 8... Bb4 {[%clk 0:02:42.8]} 9. O-O {[%clk 0:02:36.8]} 9...
Be6 {[%clk 0:02:38.9]} 10. a3 {[%clk 0:02:18.2]} 10... Be7 {[%clk 0:02:23.5]}
11. Ne5 {[%clk 0:02:08.7]} 11... Nxe5 {[%clk 0:02:03.9]} 12. dxe5 {[%clk
0:02:09.6]} 12... Nd5 {[%clk 0:01:43.4]} 13. Nxd5 {[%clk 0:01:48.2]} 13... Qxd5
{[%clk 0:01:38]} 14. Qxd5 {[%clk 0:01:47.7]} 14... Bxd5 {[%clk 0:01:38.2]} 15.
Rad1 {[%clk 0:01:45.9]} 15... Rfd8 {[%clk 0:01:38]} 16. Rd2 {[%clk 0:01:41]}
16... Bc6 {[%clk 0:01:34.8]} 17. Rfd1 {[%clk 0:01:40.5]} 17... Rxd2 {[%clk
0:01:34.9]} 18. Rxd2 {[%clk 0:01:41.4]} 18... b6 {[%clk 0:01:35.4]} 19. Kf1
{[%clk 0:01:22.7]} 19... Kf8 {[%clk 0:01:21.3]} 20. Ke1 {[%clk 0:01:20.6]} 20...
Re8 {[%clk 0:00:49.9]} 21. Bg4 {[%clk 0:01:13.8]} 21... Rb8 {[%clk 0:00:31.1]}
22. Bf4 {[%clk 0:01:05.8]} 22... Rd8 {[%clk 0:00:23.7]} 23. e6 {[%clk
0:00:52.5]} 23... Rxd2 {[%clk 0:00:23.2]} 24. Kxd2 {[%clk 0:00:52.5]} 24... fxe6
{[%clk 0:00:21.3]} 25. Bxc7 {[%clk 0:00:52.5]} 25... e3+ {[%clk 0:00:19.6]} 26.
fxe3 {[%clk 0:00:46.4]} 26... Bxg2 {[%clk 0:00:14.2]} 27. Bxe6 {[%clk
0:00:46.1]} 27... Bb7 {[%clk 0:00:10.4]} 28. Bb8 {[%clk 0:00:44.3]} 28... a6
{[%clk 0:00:10.6]} 29. Bc7 {[%clk 0:00:42.2]} 29... b5 {[%clk 0:00:11]} 30. Kd3
{[%clk 0:00:41.8]} 30... Bf6 {[%clk 0:00:10.8]} 31. b3 {[%clk 0:00:40]} 31...
Ke7 {[%clk 0:00:11.3]} 32. Bf5 {[%clk 0:00:39]} 32... g6 {[%clk 0:00:11.3]} 33.
Be4 {[%clk 0:00:39.2]} 33... Bc8 {[%clk 0:00:11.9]} 34. Bc6 {[%clk 0:00:34.2]}
34... Bb2 {[%clk 0:00:10.1]} 35. a4 {[%clk 0:00:34.2]} 35... bxa4 {[%clk
0:00:10]} 36. bxa4 {[%clk 0:00:33.2]} 36... g5 {[%clk 0:00:10]} 37. c3 {[%clk
0:00:26.4]} 37... h5 {[%clk 0:00:05.7]} 38. Bb6 {[%clk 0:00:20.4]} 38... Ba3
{[%clk 0:00:04.5]} 39. Bd4 {[%clk 0:00:19.5]} 39... Bd6 {[%clk 0:00:04]} 40. Ke4
{[%clk 0:00:08.5]} 40... Bxh2 {[%clk 0:00:04.1]} 41. Kf3 {[%clk 0:00:09.4]}
41... Bd6 {[%clk 0:00:04.1]} 42. e4 {[%clk 0:00:09.5]} 42... g4+ {[%clk
0:00:04.6]} 43. Kg2 {[%clk 0:00:10]} 43... Bf4 {[%clk 0:00:05]} 44. e5 {[%clk
0:00:09.9]} 44... h4 {[%clk 0:00:05.1]} 45. Bd5 {[%clk 0:00:09.6]} 45... h3+
{[%clk 0:00:04.7]} 46. Kh1 {[%clk 0:00:07.7]} 46... g3 {[%clk 0:00:04.8]} 47.
Bc5+ {[%clk 0:00:08.2]} 47... Ke8 {[%clk 0:00:04.3]} 48. e6 {[%clk 0:00:06]}
48... Bg5 {[%clk 0:00:03]} 49. Bc6+ {[%clk 0:00:04]} 49... Kd8 {[%clk
0:00:02.9]} 50. Bd6 {[%clk 0:00:02.4]} 50... g2+ {[%clk 0:00:01.8]} 0-1

[Event "*** Titled Tuesday Blitz"]
[Site "Chess.com"]
[Date "2021.02.02"]
[Round "2"]
[White "MaxLeto"]
[Black "CSB7"]
[Result "1-0"]
[WhiteElo "2344"]
[BlackElo "2587"]
[TimeControl "180+1"]
[EndTime "10:20:42 PST"]
[Termination "MaxLeto won by resignation"]

1. g4 {[%clk 0:03:00.9]} 1... d5 {[%clk 0:02:54.1]} 2. Bg2 {[%clk 0:03:01.8]}
2... Bxg4 {[%clk 0:02:38.5]} 3. c4 {[%clk 0:03:00]} 3... c6 {[%clk 0:02:37]} 4.
Qb3 {[%clk 0:02:58.2]} 4... Nf6 {[%clk 0:02:22.6]} 5. Qxb7 {[%clk 0:02:52.6]}
5... Nbd7 {[%clk 0:02:21.5]} 6. d3 {[%clk 0:02:38.8]} 6... Rc8 {[%clk
0:01:44.6]} 7. Qxa7 {[%clk 0:02:33.2]} 7... e6 {[%clk 0:01:44.4]} 8. Be3 {[%clk
0:02:27.4]} 8... Ra8 {[%clk 0:01:17.9]} 9. Qb7 {[%clk 0:02:21.7]} 9... Rb8
{[%clk 0:01:18.3]} 10. Qxc6 {[%clk 0:02:21]} 10... Rxb2 {[%clk 0:01:18.8]} 11.
Nf3 {[%clk 0:02:08.4]} 11... Bb4+ {[%clk 0:01:14.5]} 12. Nbd2 {[%clk 0:02:05.8]}
12... Bxf3 {[%clk 0:01:13.5]} 13. Bxf3 {[%clk 0:02:03.3]} 13... O-O {[%clk
0:01:10.9]} 14. a3 {[%clk 0:01:44.9]} 14... Ne5 {[%clk 0:00:55.6]} 15. Qa4
{[%clk 0:01:40.2]} 15... Bc3 {[%clk 0:00:30.6]} 16. Rd1 {[%clk 0:00:47.7]} 16...
dxc4 {[%clk 0:00:22.2]} 17. O-O {[%clk 0:00:28.1]} 17... Bxd2 {[%clk 0:00:21.6]}
18. Rxd2 {[%clk 0:00:25.8]} 18... Rxd2 {[%clk 0:00:20.6]} 19. Bxd2 {[%clk
0:00:26.7]} 19... Nxf3+ {[%clk 0:00:20.8]} 20. exf3 {[%clk 0:00:27.4]} 20...
Qxd3 {[%clk 0:00:20.7]} 21. Be3 {[%clk 0:00:26.1]} 21... Nd5 {[%clk 0:00:17]}
22. Qd1 {[%clk 0:00:17.9]} 22... Qxa3 {[%clk 0:00:15.2]} 23. Qd4 {[%clk
0:00:18]} 23... c3 {[%clk 0:00:13.4]} 24. Kh1 {[%clk 0:00:16.5]} 24... Qe7
{[%clk 0:00:08.5]} 25. Rg1 {[%clk 0:00:16.3]} 25... Qf6 {[%clk 0:00:08.8]} 26.
Qxf6 {[%clk 0:00:10.4]} 26... Nxf6 {[%clk 0:00:09.7]} 27. Bd4 {[%clk 0:00:11.3]}
27... Rc8 {[%clk 0:00:03.8]} 28. Bxf6 {[%clk 0:00:09]} 28... c2 {[%clk
0:00:04.4]} 29. Bg5 {[%clk 0:00:08.8]} 29... f6 {[%clk 0:00:03.4]} 30. Be3
{[%clk 0:00:07]} 30... e5 {[%clk 0:00:03.7]} 31. Kg2 {[%clk 0:00:06.9]} 31...
Kf7 {[%clk 0:00:04.3]} 32. Rc1 {[%clk 0:00:06.5]} 32... g5 {[%clk 0:00:03.7]}
33. Kf1 {[%clk 0:00:06.5]} 33... h6 {[%clk 0:00:03.2]} 34. Ke2 {[%clk
0:00:06.6]} 34... f5 {[%clk 0:00:03.8]} 35. Kd3 {[%clk 0:00:03.7]} 35... Ke6
{[%clk 0:00:03.4]} 36. Rxc2 {[%clk 0:00:03.5]} 36... Rd8+ {[%clk 0:00:03.8]} 37.
Ke2 {[%clk 0:00:03.7]} 37... f4 {[%clk 0:00:04]} 38. Bc5 {[%clk 0:00:03.6]}
38... Kf5 {[%clk 0:00:04.1]} 39. Bb4 {[%clk 0:00:03.5]} 39... h5 {[%clk
0:00:04.3]} 40. Rc5 {[%clk 0:00:03.6]} 40... Re8 {[%clk 0:00:03.2]} 41. Rc7
{[%clk 0:00:02.9]} 41... g4 {[%clk 0:00:03.3]} 42. Bc3 {[%clk 0:00:02.8]} 42...
e4 {[%clk 0:00:02.6]} 43. fxg4+ {[%clk 0:00:02.9]} 43... hxg4 {[%clk 0:00:02.5]}
44. Rc5+ {[%clk 0:00:03.6]} 44... Kg6 {[%clk 0:00:02.4]} 45. Bd2 {[%clk
0:00:04.2]} 45... f3+ {[%clk 0:00:01.6]} 46. Ke3 {[%clk 0:00:04.3]} 46... Rh8
{[%clk 0:00:01.8]} 47. Kxe4 {[%clk 0:00:03.4]} 47... Rxh2 {[%clk 0:00:02.3]} 48.
Be3 {[%clk 0:00:04.3]} 48... Rg2 {[%clk 0:00:01.8]} 49. Kf4 {[%clk 0:00:04.1]}
49... g3 {[%clk 0:00:02.3]} 50. Rg5+ {[%clk 0:00:04.6]} 50... Kf7 {[%clk
0:00:02]} 51. Rxg3 {[%clk 0:00:05.5]} 51... Rh2 {[%clk 0:00:02.6]} 52. Rxf3
{[%clk 0:00:05.8]} 52... Rh5 {[%clk 0:00:03.2]} 53. Kg4+ {[%clk 0:00:05.9]}
53... Kg6 {[%clk 0:00:03.7]} 54. Rf6+ {[%clk 0:00:04.8]} 54... Kxf6 {[%clk
0:00:03.8]} 55. Kxh5 {[%clk 0:00:05.7]} 1-0

[Event "*** Titled Tuesday Blitz"]
[Site "Chess.com"]
[Date "2021.02.02"]
[Round "2"]
[White "Michaelson_11"]
[Black "GM_LOADING"]
[Result "1-0"]
[WhiteElo "2266"]
[BlackElo "2446"]
[TimeControl "180+1"]
[EndTime "10:20:42 PST"]
[Termination "Michaelson_11 won by resignation"]

1. e4 {[%clk 0:03:00.9]} 1... e5 {[%clk 0:02:53.1]} 2. Nf3 {[%clk 0:02:58.7]}
2... Nc6 {[%clk 0:02:50.3]} 3. Nc3 {[%clk 0:02:58.7]} 3... Nf6 {[%clk
0:02:47.4]} 4. Be2 {[%clk 0:02:58.6]} 4... d6 {[%clk 0:02:28]} 5. d4 {[%clk
0:02:53.8]} 5... Bg4 {[%clk 0:02:22.6]} 6. d5 {[%clk 0:02:38]} 6... Ne7 {[%clk
0:01:54.9]} 7. O-O {[%clk 0:02:31.7]} 7... Ng6 {[%clk 0:01:53.3]} 8. Be3 {[%clk
0:02:16.5]} 8... Be7 {[%clk 0:01:49.1]} 9. h3 {[%clk 0:02:07.8]} 9... Bxf3
{[%clk 0:01:44.9]} 10. Bxf3 {[%clk 0:02:08.7]} 10... O-O {[%clk 0:01:45.3]} 11.
g3 {[%clk 0:02:07]} 11... Nd7 {[%clk 0:01:35.3]} 12. Qd3 {[%clk 0:01:53.9]}
12... Bg5 {[%clk 0:01:27.9]} 13. Bg2 {[%clk 0:01:45]} 13... Bxe3 {[%clk
0:01:18.7]} 14. fxe3 {[%clk 0:01:44.3]} 14... Nc5 {[%clk 0:01:14.6]} 15. Qe2
{[%clk 0:01:35.4]} 15... a5 {[%clk 0:01:10.9]} 16. Rf3 {[%clk 0:01:22.6]} 16...
a4 {[%clk 0:00:59.1]} 17. Raf1 {[%clk 0:01:20]} 17... Ra6 {[%clk 0:00:55.8]} 18.
Qf2 {[%clk 0:01:10.8]} 18... Qe7 {[%clk 0:00:44.7]} 19. h4 {[%clk 0:01:09.9]}
19... Rb6 {[%clk 0:00:40.2]} 20. h5 {[%clk 0:01:07.8]} 20... Nh8 {[%clk
0:00:35.5]} 21. b3 {[%clk 0:00:58]} 21... h6 {[%clk 0:00:19.5]} 22. Rf5 {[%clk
0:00:42.7]} 22... f6 {[%clk 0:00:16.4]} 23. Qe2 {[%clk 0:00:27.1]} 23... Nf7
{[%clk 0:00:07.5]} 24. bxa4 {[%clk 0:00:15]} 24... Ra8 {[%clk 0:00:05.8]} 25.
Qc4 {[%clk 0:00:14.2]} 25... Ng5 {[%clk 0:00:04.3]} 26. Rd1 {[%clk 0:00:08.5]}
26... Qd7 {[%clk 0:00:04.6]} 27. Rff1 {[%clk 0:00:08.9]} 27... Nxa4 {[%clk
0:00:04.8]} 28. Nxa4 {[%clk 0:00:09.4]} 28... Rxa4 {[%clk 0:00:05.3]} 29. Qd3
{[%clk 0:00:09.6]} 29... Qb5 {[%clk 0:00:04.3]} 30. Rb1 {[%clk 0:00:08]} 30...
Qxd3 {[%clk 0:00:04.4]} 31. cxd3 {[%clk 0:00:07.8]} 31... Rxa2 {[%clk
0:00:04.1]} 32. Rxb6 {[%clk 0:00:07.9]} 32... cxb6 {[%clk 0:00:05]} 33. Rb1
{[%clk 0:00:08.8]} 33... Rd2 {[%clk 0:00:04.9]} 34. Rxb6 {[%clk 0:00:08.5]}
34... Rxd3 {[%clk 0:00:05.6]} 35. Rxb7 {[%clk 0:00:08.8]} 35... Rxe3 {[%clk
0:00:05.7]} 36. Kf2 {[%clk 0:00:08.8]} 36... Rd3 {[%clk 0:00:04.4]} 37. Rb8+
{[%clk 0:00:08.9]} 37... Kh7 {[%clk 0:00:04.3]} 38. Rb6 {[%clk 0:00:08.8]} 38...
Rd2+ {[%clk 0:00:04.6]} 39. Kf1 {[%clk 0:00:09]} 39... Rd4 {[%clk 0:00:04.5]}
40. Rxd6 {[%clk 0:00:08.7]} 40... Nxe4 {[%clk 0:00:05.2]} 41. Bxe4+ {[%clk
0:00:06.6]} 41... Rxe4 {[%clk 0:00:05.4]} 42. Rd7 {[%clk 0:00:07]} 42... Rd4
{[%clk 0:00:05.8]} 43. Kf2 {[%clk 0:00:07.3]} 43... Kg8 {[%clk 0:00:05.3]} 44.
Kf3 {[%clk 0:00:06.5]} 44... Kf8 {[%clk 0:00:05.5]} 45. d6 {[%clk 0:00:05.3]}
45... Rd3+ {[%clk 0:00:03.9]} 46. Ke4 {[%clk 0:00:05.1]} 46... Rxg3 {[%clk
0:00:03.7]} 47. Kf5 {[%clk 0:00:04.9]} 47... Rg5+ {[%clk 0:00:03.2]} 48. Ke6
{[%clk 0:00:05.2]} 48... Kg8 {[%clk 0:00:02.3]} 49. Re7 {[%clk 0:00:04.3]} 49...
e4 {[%clk 0:00:01.3]} 50. d7 {[%clk 0:00:04.6]} 50... Re5+ {[%clk 0:00:01.7]}
51. Kd6 {[%clk 0:00:03.8]} 1-0

[Event "*** Titled Tuesday Blitz"]
[Site "Chess.com"]
[Date "2021.02.02"]
[Round "2"]
[White "Firegrizzly"]
[Black "PSvidler"]
[Result "1/2-1/2"]
[WhiteElo "2581"]
[BlackElo "2898"]
[TimeControl "180+1"]
[EndTime "10:20:43 PST"]
[Termination "Game drawn by repetition"]

1. Nf3 {[%clk 0:03:00.9]} 1... g6 {[%clk 0:02:52.7]} 2. e4 {[%clk 0:02:59.6]}
2... Nf6 {[%clk 0:02:52.4]} 3. Nc3 {[%clk 0:02:58.6]} 3... Nh5 {[%clk
0:02:53.3]} 4. d4 {[%clk 0:02:58.1]} 4... d6 {[%clk 0:02:53.2]} 5. h3 {[%clk
0:02:57.5]} 5... Bg7 {[%clk 0:02:51.5]} 6. Be3 {[%clk 0:02:56]} 6... Nc6 {[%clk
0:02:45]} 7. Be2 {[%clk 0:02:54]} 7... Nf6 {[%clk 0:02:06.5]} 8. O-O {[%clk
0:02:49.9]} 8... O-O {[%clk 0:02:06.2]} 9. Qd2 {[%clk 0:02:38.8]} 9... e5 {[%clk
0:02:03.8]} 10. dxe5 {[%clk 0:02:32]} 10... Nxe5 {[%clk 0:02:01.9]} 11. Nxe5
{[%clk 0:02:30.2]} 11... dxe5 {[%clk 0:02:01.6]} 12. Qxd8 {[%clk 0:02:30]} 12...
Rxd8 {[%clk 0:02:01.6]} 13. Rfd1 {[%clk 0:02:30.9]} 13... Be6 {[%clk 0:01:59.5]}
14. a4 {[%clk 0:02:29.5]} 14... a6 {[%clk 0:01:53.2]} 15. g4 {[%clk 0:02:23]}
15... Bf8 {[%clk 0:01:48.3]} 16. g5 {[%clk 0:02:20.5]} 16... Ne8 {[%clk
0:01:46.5]} 17. h4 {[%clk 0:02:13.6]} 17... h5 {[%clk 0:01:41.5]} 18. Rxd8
{[%clk 0:01:50.2]} 18... Rxd8 {[%clk 0:01:40.4]} 19. Rd1 {[%clk 0:01:51.1]}
19... Rxd1+ {[%clk 0:01:39.6]} 20. Bxd1 {[%clk 0:01:50]} 20... Bb4 {[%clk
0:01:34.7]} 21. Nd5 {[%clk 0:01:48.2]} 21... Bxd5 {[%clk 0:01:34]} 22. exd5
{[%clk 0:01:49.1]} 22... Nd6 {[%clk 0:01:29.7]} 23. b3 {[%clk 0:01:41.8]} 23...
Nf5 {[%clk 0:01:27.3]} 24. c4 {[%clk 0:01:26.3]} 24... b6 {[%clk 0:01:22.8]} 25.
Bc2 {[%clk 0:01:21.9]} 25... Nxh4 {[%clk 0:01:22]} 26. Be4 {[%clk 0:01:09.6]}
26... Nf5 {[%clk 0:01:13.4]} 27. Bxf5 {[%clk 0:01:07.9]} 27... gxf5 {[%clk
0:01:13.3]} 28. Kg2 {[%clk 0:01:01.7]} 28... Kg7 {[%clk 0:01:09]} 29. f4 {[%clk
0:01:00.7]} 29... e4 {[%clk 0:01:08.1]} 30. Kg3 {[%clk 0:00:57.3]} 30... Kg6
{[%clk 0:01:06.9]} 31. Bd4 {[%clk 0:00:54.4]} 31... Bc5 {[%clk 0:01:04.5]} 32.
Be5 {[%clk 0:00:53.5]} 32... e3 {[%clk 0:01:02.2]} 33. Bc3 {[%clk 0:00:51.2]}
33... e2 {[%clk 0:00:59.2]} 34. Be1 {[%clk 0:00:50.1]} 34... Bd6 {[%clk
0:00:56.1]} 35. Kf3 {[%clk 0:00:49.7]} 35... f6 {[%clk 0:00:56]} 36. gxf6 {[%clk
0:00:48.5]} 36... Kxf6 {[%clk 0:00:56.2]} 37. Bg3 {[%clk 0:00:46.1]} 37... Kg6
{[%clk 0:00:48.1]} 38. Kxe2 {[%clk 0:00:45.4]} 38... h4 {[%clk 0:00:48]} 39.
Bxh4 {[%clk 0:00:44.8]} 39... Kh5 {[%clk 0:00:46.1]} 40. Bg5 {[%clk 0:00:43.3]}
40... Kg4 {[%clk 0:00:46.1]} 41. Ke3 {[%clk 0:00:43.7]} 41... Bc5+ {[%clk
0:00:45]} 42. Kd3 {[%clk 0:00:43.8]} 42... Kf3 {[%clk 0:00:44.5]} 43. Kc3 {[%clk
0:00:25.3]} 43... a5 {[%clk 0:00:44.3]} 44. Kd3 {[%clk 0:00:21.1]} 44... Bd6
{[%clk 0:00:43.9]} 45. Kd4 {[%clk 0:00:15.7]} 45... Bxf4 {[%clk 0:00:38.7]} 46.
Bxf4 {[%clk 0:00:15]} 46... Kxf4 {[%clk 0:00:38.9]} 47. b4 {[%clk 0:00:10.3]}
47... axb4 {[%clk 0:00:36.9]} 48. c5 {[%clk 0:00:10.5]} 48... bxc5+ {[%clk
0:00:33.3]} 49. Kc4 {[%clk 0:00:10.3]} 49... Ke5 {[%clk 0:00:32.3]} 50. a5
{[%clk 0:00:10.1]} 50... f4 {[%clk 0:00:32.5]} 51. a6 {[%clk 0:00:10.2]} 51...
f3 {[%clk 0:00:32.6]} 52. Kd3 {[%clk 0:00:08.5]} 52... f2 {[%clk 0:00:31.7]} 53.
Ke2 {[%clk 0:00:08.3]} 53... f1=Q+ {[%clk 0:00:31.2]} 54. Kxf1 {[%clk
0:00:08.9]} 54... b3 {[%clk 0:00:31.7]} 55. a7 {[%clk 0:00:08.5]} 55... b2
{[%clk 0:00:32.3]} 56. a8=Q {[%clk 0:00:08.1]} 56... b1=Q+ {[%clk 0:00:32.3]}
57. Ke2 {[%clk 0:00:09]} 57... Qe4+ {[%clk 0:00:32.2]} 58. Kf2 {[%clk
0:00:09.4]} 58... Qxd5 {[%clk 0:00:32]} 59. Qh8+ {[%clk 0:00:09.3]} 59... Ke4
{[%clk 0:00:31.3]} 60. Qh1+ {[%clk 0:00:08.7]} 60... Kd4 {[%clk 0:00:29.7]} 61.
Qa1+ {[%clk 0:00:09.1]} 61... Ke4 {[%clk 0:00:27.2]} 62. Qh1+ {[%clk 0:00:08.9]}
62... Ke5 {[%clk 0:00:27.2]} 63. Qh8+ {[%clk 0:00:08.8]} 63... Ke4 {[%clk
0:00:18.4]} 64. Qh1+ {[%clk 0:00:08.5]} 1/2-1/2

[Event "*** Titled Tuesday Blitz"]
[Site "Chess.com"]
[Date "2021.02.02"]
[Round "2"]
[White "Grineva_Marianna"]
[Black "MasterLeif"]
[Result "1-0"]
[WhiteElo "2261"]
[BlackElo "2443"]
[TimeControl "180+1"]
[EndTime "10:20:47 PST"]
[Termination "Grineva_Marianna won by checkmate"]

1. e4 {[%clk 0:03:00.9]} 1... e5 {[%clk 0:02:59.9]} 2. Nf3 {[%clk 0:03:00.6]}
2... Nc6 {[%clk 0:03:00.4]} 3. Bb5 {[%clk 0:02:59.4]} 3... Nd4 {[%clk 0:03:01]}
4. Nxd4 {[%clk 0:02:57.9]} 4... exd4 {[%clk 0:03:01.9]} 5. O-O {[%clk
0:02:58.2]} 5... c6 {[%clk 0:03:01.7]} 6. Be2 {[%clk 0:02:49]} 6... d5 {[%clk
0:03:00.7]} 7. exd5 {[%clk 0:02:47.4]} 7... Qxd5 {[%clk 0:03:01.6]} 8. Bf3
{[%clk 0:02:47.3]} 8... Qd6 {[%clk 0:03:02.3]} 9. Re1+ {[%clk 0:02:47.5]} 9...
Be6 {[%clk 0:03:02.8]} 10. d3 {[%clk 0:02:42.5]} 10... Nf6 {[%clk 0:03:02.9]}
11. Nd2 {[%clk 0:02:39]} 11... Be7 {[%clk 0:03:02.1]} 12. Ne4 {[%clk 0:02:36.4]}
12... Nxe4 {[%clk 0:03:01.5]} 13. Rxe4 {[%clk 0:02:33.8]} 13... O-O-O {[%clk
0:03:01.1]} 14. Bf4 {[%clk 0:02:33.6]} 14... Qd7 {[%clk 0:03:01.4]} 15. Bg3
{[%clk 0:02:28.3]} 15... Bf5 {[%clk 0:02:57.8]} 16. Re5 {[%clk 0:02:21.7]} 16...
Bd6 {[%clk 0:02:54.9]} 17. Rxf5 {[%clk 0:02:19.2]} 17... Bxg3 {[%clk 0:02:50.4]}
18. hxg3 {[%clk 0:02:20.1]} 18... Kb8 {[%clk 0:02:48.8]} 19. Re5 {[%clk
0:02:14]} 19... f6 {[%clk 0:02:46.8]} 20. Re4 {[%clk 0:02:11.7]} 20... h5 {[%clk
0:02:46]} 21. Qd2 {[%clk 0:02:09.2]} 21... g5 {[%clk 0:02:45.5]} 22. Rae1 {[%clk
0:02:05.7]} 22... Rh7 {[%clk 0:02:42.4]} 23. Re6 {[%clk 0:02:01.7]} 23... h4
{[%clk 0:02:40.8]} 24. gxh4 {[%clk 0:01:53.3]} 24... Rxh4 {[%clk 0:02:40]} 25.
g3 {[%clk 0:01:53.8]} 25... Rh7 {[%clk 0:02:33.3]} 26. Bg2 {[%clk 0:01:48]}
26... Rdh8 {[%clk 0:02:32]} 27. Qe2 {[%clk 0:01:40.2]} 27... a6 {[%clk 0:02:26]}
28. Re8+ {[%clk 0:01:37.9]} 28... Ka7 {[%clk 0:02:26.3]} 29. Qe6 {[%clk
0:01:30.2]} 29... Qc7 {[%clk 0:02:20]} 30. Rxh8 {[%clk 0:01:25.3]} 30... Rxh8
{[%clk 0:02:20.9]} 31. Qxf6 {[%clk 0:01:25.5]} 31... Rh7 {[%clk 0:02:17.9]} 32.
Qxd4+ {[%clk 0:01:22.9]} 32... c5 {[%clk 0:02:17.9]} 33. Qd5 {[%clk 0:01:18.8]}
33... Qa5 {[%clk 0:02:13.3]} 34. Re5 {[%clk 0:01:13.1]} 34... Rc7 {[%clk
0:02:09.9]} 35. c3 {[%clk 0:00:54.9]} 35... Qa4 {[%clk 0:02:07.7]} 36. Qb3
{[%clk 0:00:51.6]} 36... Qd7 {[%clk 0:02:01]} 37. Qc4 {[%clk 0:00:27.8]} 37...
Qd6 {[%clk 0:01:57.7]} 38. d4 {[%clk 0:00:23.7]} 38... Qg6 {[%clk 0:01:35]} 39.
Rxc5 {[%clk 0:00:19.2]} 39... Qb1+ {[%clk 0:01:34.6]} 40. Bf1 {[%clk 0:00:19.1]}
40... Rh7 {[%clk 0:01:30.8]} 41. Rc7 {[%clk 0:00:17.1]} 41... Rh8 {[%clk
0:01:11.5]} 42. Qc5+ {[%clk 0:00:16.8]} 42... Kb8 {[%clk 0:01:12.2]} 43. Rg7
{[%clk 0:00:14.4]} 43... Rh1+ {[%clk 0:00:59.9]} 44. Kxh1 {[%clk 0:00:14.6]}
44... Qxf1+ {[%clk 0:01:00.8]} 45. Kh2 {[%clk 0:00:15.3]} 45... Qxf2+ {[%clk
0:01:01.7]} 46. Kh3 {[%clk 0:00:15.8]} 46... Qf1+ {[%clk 0:01:01]} 47. Kg4
{[%clk 0:00:15.8]} 47... Qe2+ {[%clk 0:00:48.6]} 48. Kxg5 {[%clk 0:00:15.8]}
48... Qe3+ {[%clk 0:00:49.3]} 49. Kh4 {[%clk 0:00:15.5]} 49... Qh6+ {[%clk
0:00:48.5]} 50. Qh5 {[%clk 0:00:15.3]} 50... Qc1 {[%clk 0:00:40.1]} 51. Qe5+
{[%clk 0:00:15]} 51... Ka7 {[%clk 0:00:37.5]} 52. Rg6 {[%clk 0:00:14]} 52...
Qh1+ {[%clk 0:00:30.9]} 53. Kg4 {[%clk 0:00:13.8]} 53... Qd1+ {[%clk 0:00:30.7]}
54. Kf5 {[%clk 0:00:14.4]} 54... Qc2+ {[%clk 0:00:29.5]} 55. Kf6 {[%clk
0:00:14.6]} 55... Qf2+ {[%clk 0:00:26.9]} 56. Qf4 {[%clk 0:00:14.7]} 56... Qxb2
{[%clk 0:00:26.8]} 57. d5 {[%clk 0:00:13.3]} 57... Qxa2 {[%clk 0:00:16.1]} 58.
Qe5 {[%clk 0:00:13.4]} 58... Qf2+ {[%clk 0:00:15]} 59. Ke6 {[%clk 0:00:13.8]}
59... Qb6+ {[%clk 0:00:14.3]} 60. d6 {[%clk 0:00:13.5]} 60... Qc6 {[%clk
0:00:13.5]} 61. Rg7 {[%clk 0:00:12.9]} 61... Qe8+ {[%clk 0:00:13.5]} 62. Re7
{[%clk 0:00:13]} 62... Qg8+ {[%clk 0:00:13.6]} 63. Kd7 {[%clk 0:00:13]} 63...
Kb8 {[%clk 0:00:12.5]} 64. Re8+ {[%clk 0:00:12.7]} 64... Ka7 {[%clk 0:00:12.6]}
65. Rxg8 {[%clk 0:00:12.7]} 65... b5 {[%clk 0:00:13.5]} 66. Rg7 {[%clk
0:00:13.3]} 66... Kb6 {[%clk 0:00:14.4]} 67. Kd8 {[%clk 0:00:13.3]} 67... Ka5
{[%clk 0:00:15.3]} 68. Qd4 {[%clk 0:00:13.7]} 68... b4 {[%clk 0:00:15.4]} 69.
Qxb4# {[%clk 0:00:14.3]} 1-0